bitfinex/quotes_BTCUSD_20251230
["timestamp","ask_amount","ask_price","bid_price","bid_amount"]
[1767115595185,0.29876,88707.0,88695.0,0.01132]
[1767115596552,0.29876,88707.0,88695.0,0.02259459]
[1767115596714,0.29876,88707.0,88695.0,0.01132]
[1767115597078,0.29876,88707.0,88695.0,0.02259459]
[1767115597829,0.29876,88707.0,88695.0,0.01132]
[1767115601034,0.29876,88716.0,88701.0,0.27393]
[1767115601236,0.01127179,88717.0,88699.0,0.05637042]
[1767115601237,0.01127179,88717.0,88702.0,0.28525]
[1767115601398,0.01127179,88717.0,88703.0,0.01127357]
[1767115601577,0.01127179,88717.0,88702.0,0.28525]
[1767115601578,0.01127166,88718.0,88702.0,0.2965237]
[1767115601926,0.01127192,88716.0,88702.0,0.28525]
[1767115602130,0.01127179,88717.0,88702.0,0.2965237]
[1767115602303,0.01127166,88718.0,88702.0,0.0225937]
[1767115602515,0.01127179,88717.0,88703.0,0.27393]
[1767115602706,0.01127192,88716.0,88703.0,0.27393]
[1767115602962,0.01127179,88717.0,88703.0,0.27393]
[1767115603150,0.01127192,88716.0,88703.0,0.27393]
[1767115603478,0.04017405,88718.0,88703.0,0.27393]
[1767115603857,0.01127192,88716.0,88703.0,0.27393]
[1767115604267,0.01127179,88717.0,88703.0,0.27393]
[1767115605778,0.01127166,88718.0,88703.0,0.27393]
[1767115605989,0.01132,88719.0,88705.0,0.28520332]
[1767115606195,0.01132,88719.0,88708.0,0.01127294]
[1767115606348,0.01132,88719.0,88705.0,0.28520332]
[1767115606799,0.01132,88719.0,88706.0,0.01127319]
[1767115607008,0.01132,88719.0,88707.0,0.01127306]
[1767115607407,0.01132,88719.0,88708.0,0.01127294]
[1767115607611,0.01132,88719.0,88708.0,0.28590294]
[1767115607818,0.01132,88719.0,88708.0,0.27463]
[1767115609246,0.01132,88719.0,88708.0,0.28590294]
[1767115609588,5.617e-05,88720.0,88709.0,0.01132]
[1767115610218,5.617e-05,88720.0,88709.0,0.02259281]
[1767115610981,5.617e-05,88720.0,88709.0,0.01132]
[1767115611205,0.54647433,88720.0,88709.0,0.01132]
[1767115613764,0.55774574,88720.0,88709.0,0.01132]
[1767115614014,0.01127166,88718.0,88709.0,0.010771]
[1767115614208,0.01127281,88709.0,88692.0,0.27463]
[1767115614413,0.54641816,88702.0,88693.0,0.01127484]
[1767115614612,0.30431281,88709.0,88694.0,0.01132]
[1767115614613,0.29304,88707.0,88694.0,0.01132]
[1767115614814,0.29304,88707.0,88694.0,0.02259471]
[1767115615421,0.29304,88707.0,88695.0,0.01127459]
[1767115615819,0.29304,88707.0,88694.0,0.02259471]
[1767115616062,0.29304,88707.0,88667.0,0.10138971]
[1767115616063,0.01127408,88699.0,88685.0,0.27463]
[1767115616244,0.01127611,88683.0,88680.0,0.27463]
[1767115616443,0.00055,88694.0,88680.0,0.27463]
[1767115616444,0.01127548,88688.0,88681.0,0.01132]
[1767115616778,0.54641816,88690.0,88681.0,0.01132]
[1767115616903,0.01127484,88693.0,88681.0,0.01132]
[1767115617354,0.30431459,88695.0,88681.0,0.01137617]
[1767115617921,0.29304,88695.0,88681.0,0.29728254]
[1767115618125,0.29304,88695.0,88682.0,0.01127624]
[1767115618342,0.29304,88695.0,88681.0,0.29728254]
[1767115618743,0.29304,88695.0,88682.0,0.01127624]
[1767115618970,0.01127433,88697.0,88682.0,0.01127624]
[1767115619572,0.01127446,88696.0,88681.0,0.29728254]
[1767115619968,0.01127459,88695.0,88681.0,0.28600617]
[1767115620172,0.01127497,88692.0,88681.0,0.01137617]
[1767115620374,0.54641816,88691.0,88681.0,0.01137617]
[1767115620615,0.30431459,88695.0,88678.0,0.04512]
[1767115620616,0.00049383,88681.0,88679.0,0.01127662]
[1767115620946,0.54641816,88700.0,88686.0,0.01127573]
[1767115621231,0.30431421,88698.0,88682.0,0.29722624]
[1767115621497,0.01127433,88697.0,88682.0,0.28595]
[1767115621701,0.01127446,88696.0,88682.0,0.28595]
[1767115621905,0.54641816,88692.0,88682.0,0.01132]
[1767115622127,0.54641816,88692.0,88683.0,0.01132]
[1767115622337,0.29304,88691.0,88683.0,0.01132]
[1767115622939,0.01127446,88696.0,88683.0,0.01132]
[1767115622940,0.54641816,88700.0,88684.0,0.27463]
[1767115623169,0.01127383,88701.0,88687.0,0.27463]
[1767115623770,0.55769211,88700.0,88687.0,0.27463]
[1767115623965,0.54641816,88700.0,88687.0,0.27463]
[1767115624397,0.55769211,88700.0,88687.0,0.27463]
[1767115624912,0.01127344,88704.0,88687.0,0.2859056]
[1767115625117,0.01127306,88707.0,88690.0,0.29486522]
[1767115625235,0.01127332,88705.0,88691.0,0.3061851]
[1767115625444,0.01127306,88707.0,88692.0,0.01132]
[1767115625650,0.01127306,88707.0,88692.0,0.02259497]
[1767115625852,0.01127319,88706.0,88692.0,0.01132]
[1767115626304,0.01127306,88707.0,88692.0,0.02259497]
[1767115626701,0.01127294,88708.0,88692.0,0.02259497]
[1767115626938,0.30338181,88709.0,88692.0,0.07896968]
[1767115627114,0.30338181,88709.0,88694.0,0.29486471]
[1767115627515,0.01127294,88708.0,88694.0,0.28359]
[1767115627673,0.30338181,88709.0,88694.0,0.29486471]
[1767115627870,0.30338181,88709.0,88697.0,0.01127433]
[1767115627871,0.000119,88709.0,88697.0,0.01127433]
[1767115628077,0.000119,88709.0,88696.0,0.28359]
[1767115628424,0.000119,88709.0,88696.0,0.29486446]
[1767115628785,0.000119,88709.0,88696.0,0.28359]
[1767115628981,0.000119,88709.0,88696.0,0.29486446]
[1767115629436,0.000119,88709.0,88696.0,0.28359]
[1767115630263,0.000119,88709.0,88696.0,0.29486446]
[1767115630489,0.000119,88709.0,88698.0,0.28359]
[1767115631426,0.000119,88709.0,88699.0,0.01132]
[1767115631712,0.54610891,88710.0,88702.0,0.0112737]
[1767115631913,0.01132,88712.0,88700.0,0.29486395]
[1767115632122,0.01132,88712.0,88701.0,0.01127383]
[1767115632314,0.54610891,88710.0,88701.0,0.01127383]
[1767115632515,0.54610891,88710.0,88702.0,0.0112737]
[1767115632816,0.55742891,88712.0,88700.0,0.28359]
[1767115633058,0.54610891,88710.0,88700.0,0.28359]
[1767115636524,0.54610891,88710.0,88699.0,0.01132]
[1767115637032,0.54610891,88710.0,88685.0,0.04512]
[1767115637033,0.27994,88709.0,88682.0,0.29088624]
[1767115637259,0.54610891,88692.0,88683.0,0.01132]
[1767115637463,0.54610891,88693.0,88683.0,0.01132]
[1767115637691,0.54610891,88693.0,88683.0,0.02259611]
[1767115637858,0.54610891,88693.0,88679.0,0.06776611]
[1767115637859,0.54610891,88693.0,88684.0,0.01132]
[1767115639359,0.54610891,88693.0,88684.0,0.02259599]
[1767115639554,0.54610891,88693.0,88684.0,0.01132]
[1767115640357,0.54610891,88693.0,88685.0,0.01127586]
[1767115640561,0.01127344,88704.0,88693.0,0.001099]
[1767115640764,0.54610891,88703.0,88688.0,0.01127548]
[1767115640963,0.54610891,88700.0,88691.0,0.0112751]
[1767115641255,0.54610891,88700.0,88693.0,0.01127484]
[1767115641454,0.54610891,88703.0,88694.0,0.01127471]
[1767115641680,0.54610891,88703.0,88700.0,0.000549]
[1767115641885,0.01132,88705.0,88694.0,0.01127471]
[1767115642080,0.27994,88708.0,88693.0,0.07896859]
[1767115642291,0.29121294,88708.0,88693.0,0.02259484]
[1767115642799,0.29121294,88708.0,88694.0,0.01127471]
[1767115642945,0.29121294,88708.0,88693.0,0.02259484]
[1767115643142,0.29121294,88708.0,88694.0,0.01127471]
[1767115643341,0.29121294,88708.0,88693.0,0.01132]
[1767115643586,0.27994,88708.0,88693.0,0.01132]
[1767115643792,0.54610891,88703.0,88694.0,0.01127471]
[1767115644264,0.54610891,88704.0,88695.0,0.27961]
[1767115645320,0.54610891,88705.0,88695.0,0.29088459]
[1767115645517,0.54610891,88705.0,88696.0,0.01127446]
[1767115645737,0.54610891,88705.0,88695.0,0.27961]
[1767115646300,0.54610891,88705.0,88693.0,0.01132]
[1767115646502,0.54610891,88703.0,88693.0,0.01132]
[1767115646816,0.55738248,88703.0,88693.0,0.01132]
[1767115647043,0.0112737,88702.0,88693.0,0.01132]
[1767115648062,0.55738248,88703.0,88693.0,0.01132]
[1767115648264,0.0112737,88702.0,88693.0,0.01132]
[1767115648802,0.55738248,88703.0,88693.0,0.01132]
[1767115649027,0.0112737,88702.0,88693.0,0.01132]
[1767115649438,0.55738248,88703.0,88693.0,0.01132]
[1767115649671,0.0112737,88702.0,88693.0,0.01132]
[1767115650778,0.55738248,88703.0,88693.0,0.01132]
[1767115651517,0.0112737,88702.0,88693.0,0.01132]
[1767115652133,0.27994,88694.0,88690.0,0.01132]
[1767115652307,0.54610891,88700.0,88694.0,0.000549]
[1767115652512,0.2912137,88702.0,88694.0,0.000549]
[1767115652711,0.2912137,88702.0,88690.0,0.01132]
[1767115652937,0.01127332,88705.0,88690.0,0.29093]
[1767115653241,0.54610891,88700.0,88690.0,0.29093]
[1767115653435,0.54610891,88700.0,88692.0,0.27961]
[1767115653640,0.54610891,88700.0,88690.0,0.07897099]
[1767115653641,0.01127205,88715.0,88700.0,0.000549]
[1767115653839,0.27994,88716.0,88701.0,0.29088383]
[1767115654046,0.27994,88716.0,88703.0,0.01127357]
[1767115654439,0.27994,88716.0,88702.0,0.0112737]
[1767115654614,0.27994,88716.0,88703.0,0.01127357]
[1767115654813,0.27994,88716.0,88702.0,0.0112737]
[1767115655367,0.27994,88716.0,88703.0,0.01127357]
[1767115655869,0.54610891,88713.0,88704.0,0.01127344]
[1767115656124,0.0002183,88722.0,88704.0,0.27961]
[1767115656322,0.0002183,88722.0,88714.0,0.27961]
[1767115656552,0.0002183,88722.0,88715.0,0.01132]
[1767115657446,0.01148946,88722.0,88715.0,0.01132]
[1767115657673,0.01158576,88722.0,88715.0,0.01132]
[1767115657900,0.54610891,88720.0,88715.0,0.01132]
[1767115658131,0.01158576,88722.0,88715.0,0.01132]
[1767115658334,0.54610891,88720.0,88715.0,0.01132]
[1767115658683,0.82604891,88720.0,88715.0,0.01132]
[1767115658900,0.54610891,88720.0,88715.0,0.01132]
[1767115659642,0.55738032,88720.0,88715.0,0.01132]
[1767115659995,0.01127154,88719.0,88711.0,0.01132]
[1767115660195,0.06763204,88716.0,88711.0,0.01132]
[1767115660401,0.01127192,88716.0,88711.0,0.01132]
[1767115660600,0.06763433,88713.0,88705.0,0.01132]
[1767115660828,0.01127243,88712.0,88703.0,0.01132]
[1767115661121,0.27994,88707.0,88703.0,0.01132]
[1767115663294,0.01127383,88701.0,88687.0,0.27961]
[1767115663487,0.27994,88699.0,88693.0,0.01132]
[1767115663666,0.27994,88699.0,88690.0,0.01132]
[1767115664226,0.54610891,88703.0,88690.0,0.01132]
[1767115664430,0.54610891,88700.0,88690.0,0.02259522]
[1767115664633,0.54610891,88700.0,88690.0,0.01132]
[1767115665462,0.54610891,88700.0,88690.0,0.02259522]
[1767115665685,0.54610891,88700.0,88691.0,0.0112751]
[1767115665891,0.54610891,88700.0,88690.0,0.02259522]
[1767115666095,0.54610891,88700.0,88690.0,0.01132]
[1767115666301,0.54610891,88700.0,88691.0,0.0112751]
[1767115666505,0.54610891,88700.0,88690.0,0.02259522]
[1767115667496,0.54610891,88700.0,88690.0,0.01132]
[1767115667888,0.54610891,88700.0,88690.0,0.02259522]
[1767115668095,0.54610891,88700.0,88690.0,0.01132]
[1767115668291,0.54610891,88700.0,88691.0,0.0112751]
[1767115668504,0.54610891,88700.0,88690.0,0.02259522]
[1767115669019,0.54610891,88700.0,88691.0,0.0112751]
[1767115669437,0.54610891,88700.0,88690.0,0.02259522]
[1767115670019,0.54610891,88700.0,88691.0,0.0112751]
[1767115670844,0.54610891,88700.0,88690.0,0.02259522]
[1767115671270,0.54610891,88700.0,88691.0,0.0112751]
[1767115671496,0.54610891,88700.0,88690.0,0.02259522]
[1767115672322,0.54621991,88700.0,88690.0,0.02259522]
[1767115673719,0.54621991,88700.0,88690.0,0.01132]
[1767115674739,0.54567091,88700.0,88693.0,0.01127484]
[1767115674942,0.000111,88700.0,88697.0,0.30828433]
[1767115675149,0.000111,88700.0,88697.0,0.29701]
[1767115677268,0.000111,88700.0,88690.0,0.01132]
[1767115677469,0.54621991,88700.0,88690.0,0.01132]
[1767115677849,0.54621991,88700.0,88690.0,0.02259522]
[1767115678178,0.54621991,88700.0,88690.0,0.01132]
[1767115680352,0.54621991,88700.0,88686.0,0.05637828]
[1767115680353,0.01127688,88677.0,88653.0,0.2255976]
[1767115680519,0.000549,88690.0,88659.0,0.29701]
[1767115680520,0.31083751,88672.0,88659.0,0.29701]
[1767115680720,0.54610891,88670.0,88659.0,0.29701]
[1767115680925,0.54610891,88670.0,88660.0,0.2971584]
[1767115681136,0.01127726,88674.0,88642.0,0.0001484]
[1767115681137,0.01127815,88667.0,88642.0,0.0001484]
[1767115681345,0.08623485,88702.0,88642.0,0.0001484]
[1767115681346,0.000148,88651.0,88642.0,0.0001484]
[1767115681556,0.000148,88651.0,88642.0,0.29751448]
[1767115681767,0.55738897,88652.0,88642.0,0.29751448]
[1767115681967,0.54610891,88652.0,88642.0,0.29751448]
[1767115682409,0.54610891,88652.0,88642.0,0.29747168]
[1767115682819,0.01127917,88659.0,88642.0,0.29747168]
[1767115682820,0.00013,88679.0,88659.0,0.05639556]
[1767115683024,0.00013,88679.0,88670.0,0.28748]
[1767115683248,0.00013,88679.0,88670.0,0.2988]
[1767115683853,0.000549,88670.0,88644.0,0.0114256]
[1767115684052,0.54610891,88654.0,88644.0,0.2989056]
[1767115684314,0.54610891,88654.0,88644.0,0.29926168]
[1767115684597,0.01128031,88650.0,88644.0,0.29926168]
[1767115684819,0.01128031,88650.0,88644.0,0.01178168]
[1767115684956,0.01128018,88651.0,88644.0,0.01178168]
[1767115685156,0.54610891,88660.0,88651.0,0.00055]
[1767115685455,0.01127866,88663.0,88652.0,0.01132]
[1767115685654,0.01127853,88664.0,88653.0,0.28748]
[1767115686237,0.06766972,88666.0,88653.0,0.28748]
[1767115686449,0.0112784,88665.0,88653.0,0.28748]
[1767115686667,0.01127828,88666.0,88653.0,0.28748]
[1767115687112,0.01127853,88664.0,88653.0,0.28748]
[1767115687324,0.0112784,88665.0,88653.0,0.28748]
[1767115687550,0.54610891,88670.0,88653.0,0.28748]
[1767115687966,0.55738668,88670.0,88653.0,0.28748]
[1767115688380,0.01127789,88669.0,88653.0,0.28748]
[1767115688579,0.01127777,88670.0,88653.0,0.28748]
[1767115688969,0.01127802,88668.0,88653.0,0.29875993]
[1767115689191,0.01127789,88669.0,88653.0,0.28748]
[1767115689392,0.01127828,88666.0,88653.0,0.28748]
[1767115689592,0.01127815,88667.0,88653.0,0.28748]
[1767115690233,0.01127802,88668.0,88653.0,0.29875993]
[1767115690940,0.01127802,88668.0,88653.0,0.28748]
[1767115691480,0.01127815,88667.0,88653.0,0.29875993]
[1767115691722,0.01127815,88667.0,88653.0,0.28748]
[1767115693070,0.01127828,88666.0,88653.0,0.28748]
[1767115693243,0.0112784,88665.0,88653.0,0.28748]
[1767115693461,0.01127828,88666.0,88653.0,0.28748]
[1767115693654,0.01127891,88661.0,88644.0,0.00046168]
[1767115693854,0.000549,88653.0,88645.0,0.2988]
[1767115694441,0.01127942,88657.0,88645.0,0.2988]
[1767115694645,0.01127917,88659.0,88645.0,0.2988]
[1767115694822,0.01127904,88660.0,88645.0,0.31008095]
[1767115695030,0.01127904,88660.0,88645.0,0.2988]
[1767115695618,0.01127917,88659.0,88645.0,0.2988]
[1767115695839,0.01127904,88660.0,88645.0,0.2988]
[1767115696227,0.01127866,88663.0,88648.0,0.28887]
[1767115696449,0.01127878,88662.0,88648.0,0.28887]
[1767115696650,0.01127853,88664.0,88648.0,0.30015057]
[1767115696843,0.01127853,88664.0,88651.0,0.28887]
[1767115697050,0.01127853,88664.0,88653.0,0.28887]
[1767115697265,0.05639108,88667.0,88653.0,0.28887]
[1767115697500,0.01127815,88667.0,88653.0,0.28887]
[1767115697650,0.0112784,88665.0,88653.0,0.28887]
[1767115697854,0.01127828,88666.0,88653.0,0.28887]
[1767115698423,0.01127815,88667.0,88653.0,0.28887]
[1767115698632,0.000549,88653.0,88642.0,0.01132]
[1767115698834,0.01128018,88651.0,88642.0,0.01132]
[1767115699032,0.01128082,88646.0,88642.0,0.00547225]
[1767115699348,0.00035572,88646.0,88642.0,0.00547225]
[1767115699866,0.01128095,88645.0,88642.0,0.00492325]
[1767115700066,0.01163654,88646.0,88642.0,0.00492325]
[1767115700247,0.00035572,88646.0,88642.0,0.00492325]
[1767115700620,0.01128095,88645.0,88642.0,0.00492325]
[1767115700793,0.01163654,88646.0,88642.0,0.00492325]
[1767115700954,0.00035572,88646.0,88642.0,0.00492325]
[1767115701180,0.00035572,88646.0,88631.0,0.01128273]
[1767115701181,0.2826,88639.0,88630.0,0.0002356]
[1767115701384,0.54660832,88640.0,88630.0,0.0002356]
[1767115701581,0.01128247,88633.0,88630.0,0.0002356]
[1767115701904,0.01128349,88625.0,88622.0,0.01132]
[1767115702350,0.01128324,88627.0,88622.0,0.01132]
[1767115702652,0.01128286,88630.0,88627.0,0.000549]
[1767115702791,0.01128298,88629.0,88622.0,0.01132]
[1767115703416,0.01128311,88628.0,88622.0,0.01132]
[1767115703820,0.01128286,88630.0,88622.0,0.01132]
[1767115704023,0.01128286,88630.0,88628.0,0.000549]
[1767115704402,0.01128286,88630.0,88622.0,0.01132]
[1767115704898,0.01128247,88633.0,88630.0,0.00055]
[1767115705209,0.01128247,88633.0,88622.0,0.01132]
[1767115705377,0.0112826,88632.0,88622.0,0.01132]
[1767115705585,0.01128286,88630.0,88622.0,0.01132]
[1767115706604,0.0112826,88632.0,88622.0,0.01132]
[1767115706774,0.01128286,88630.0,88622.0,0.01132]
[1767115707340,0.01128298,88629.0,88622.0,0.01132]
[1767115707729,0.01128286,88630.0,88622.0,0.01132]
[1767115707930,0.01128273,88631.0,88622.0,0.01132]
[1767115708487,0.01128286,88630.0,88622.0,0.01132]
[1767115708676,0.01128273,88631.0,88619.0,0.0002]
[1767115709552,0.01128286,88630.0,88619.0,0.0002]
[1767115711132,0.01128375,88623.0,88619.0,0.0002]
[1767115711334,0.01128426,88619.0,88606.0,0.0002]
[1767115711535,0.01128426,88619.0,88607.0,0.01132]
[1767115711764,0.2826,88618.0,88607.0,0.01132]
[1767115712564,0.01128413,88620.0,88607.0,0.30029675]
[1767115713189,0.01128426,88619.0,88607.0,0.30029675]
[1767115713568,0.01128413,88620.0,88607.0,0.30029675]
[1767115713795,0.29388375,88623.0,88607.0,0.30029675]
[1767115713991,0.29388375,88623.0,88608.0,0.30015566]
[1767115714191,0.01128387,88622.0,88608.0,0.28887]
[1767115714465,0.29388375,88623.0,88608.0,0.30011238]
[1767115714650,0.01128387,88622.0,88608.0,0.28882672]
[1767115715004,0.011284,88621.0,88608.0,0.28882672]
[1767115715429,0.01128413,88620.0,88608.0,0.28878494]
[1767115717122,0.01128426,88619.0,88608.0,0.28878494]
[1767115717524,0.01128413,88620.0,88608.0,0.28878494]
[1767115717725,0.01128426,88619.0,88608.0,0.28878494]
[1767115717971,0.01128426,88619.0,88608.0,0.28874203]
[1767115718381,0.05642194,88618.0,88607.0,0.01142675]
[1767115718530,0.01128502,88613.0,88607.0,0.01142675]
[1767115718731,0.01128515,88612.0,88607.0,0.01142675]
[1767115718933,0.01128502,88613.0,88607.0,0.01142675]
[1767115719587,0.01128502,88613.0,88607.0,0.00010675]
[1767115719819,0.01128451,88617.0,88607.0,0.00010675]
[1767115719937,0.01128464,88616.0,88607.0,0.00010675]
[1767115720142,0.01128451,88617.0,88607.0,0.00010675]
[1767115720368,0.30520426,88619.0,88607.0,0.00010675]
[1767115720781,0.01128438,88618.0,88607.0,6.449e-05]
[1767115720987,0.01128451,88617.0,88607.0,6.449e-05]
[1767115721182,0.30520426,88619.0,88607.0,6.449e-05]
[1767115721487,0.01132,88619.0,88607.0,6.449e-05]
[1767115721801,0.02260426,88619.0,88607.0,2.281e-05]
[1767115721981,0.01132,88619.0,88607.0,2.281e-05]
[1767115722193,0.010771,88619.0,88607.0,0.28889281]
[1767115722632,0.011284,88621.0,88607.0,0.28889281]
[1767115722833,0.01132,88623.0,88621.0,0.00055]
[1767115723073,0.01128337,88626.0,88621.0,0.00055]
[1767115723375,0.2826,88630.0,88616.0,0.28887]
[1767115723376,0.01128057,88648.0,88632.0,0.28887]
[1767115723590,0.01128006,88652.0,88634.0,0.30015235]
[1767115723798,0.2828356,88651.0,88634.0,0.30015235]
[1767115724211,0.2828356,88651.0,88640.0,0.01128158]
[1767115724415,0.2828356,88651.0,88639.0,0.01128171]
[1767115724619,0.2828356,88651.0,88638.0,0.0676909]
[1767115724799,0.2828356,88651.0,88638.0,0.01128184]
[1767115724800,0.28319139,88651.0,88638.0,0.01128184]
[1767115724997,0.28319139,88651.0,88639.0,0.01128171]
[1767115725570,0.00059139,88651.0,88642.0,0.01128133]
[1767115725770,0.00059139,88651.0,88642.0,0.28887]
[1767115729047,0.00059139,88651.0,88642.0,0.28882724]
[1767115732769,0.00059139,88651.0,88458.0,0.48008591]
[1767115732770,0.000549,88642.0,88636.0,0.2827]
[1767115733026,0.28991,88649.0,88637.0,0.01136]
[1767115734623,0.28991,88649.0,88637.0,0.01131714]
[1767115735012,0.28991,88649.0,88637.0,0.02259911]
[1767115735648,0.28991,88649.0,88637.0,0.01131714]
[1767115735845,0.28991,88649.0,88637.0,0.01127549]
[1767115736055,0.53177501,88689.0,88654.0,0.2827]
[1767115736056,3.315e-05,88664.0,88654.0,0.2827]
[1767115736254,3.315e-05,88664.0,88656.0,0.2827]
[1767115736454,3.315e-05,88664.0,88657.0,0.01127942]
[1767115736682,3.315e-05,88664.0,88658.0,0.01127929]
[1767115737005,3.315e-05,88664.0,88657.0,0.01127942]
[1767115737414,3.315e-05,88664.0,88659.0,0.01127917]
[1767115738038,3.315e-05,88664.0,88659.0,0.2827]
[1767115739028,3.315e-05,88664.0,88656.0,0.00010665]
[1767115739428,0.27587315,88664.0,88656.0,0.00010665]
[1767115741431,0.27584,88662.0,88652.0,0.01136]
[1767115741637,0.27594669,88662.0,88652.0,0.01136]
[1767115744120,0.27594669,88662.0,88651.0,0.01128018]
[1767115744875,0.27594669,88662.0,88650.0,0.01132]
[1767115745483,0.27594669,88662.0,88650.0,0.02260031]
[1767115745683,0.27594669,88662.0,88650.0,0.01132]
[1767115746569,0.27594669,88662.0,88650.0,0.02260031]
[1767115747015,0.27594669,88662.0,88651.0,0.01128018]
[1767115747249,0.27594669,88662.0,88650.0,0.01132]
[1767115747370,0.27594669,88662.0,88650.0,0.02260031]
[1767115748438,0.27594669,88662.0,88650.0,0.01132]
[1767115748601,0.27594669,88662.0,88650.0,0.02260031]
[1767115749567,0.27594669,88662.0,88650.0,0.01132]
[1767115749706,0.27584,88659.0,88650.0,0.01132]
[1767115749904,0.01127967,88655.0,88645.0,0.01132]
[1767115750375,0.01127955,88656.0,88645.0,0.01132]
[1767115750963,0.28711929,88658.0,88645.0,0.01132]
[1767115751168,0.27584,88656.0,88645.0,0.01132]
[1767115751380,0.28711955,88656.0,88645.0,0.01132]
[1767115752003,0.27584,88656.0,88645.0,0.01132]
[1767115752475,0.28711955,88656.0,88645.0,0.01132]
[1767115752824,0.01127967,88655.0,88645.0,0.01132]
[1767115753017,0.27584,88656.0,88645.0,0.01132]
[1767115753670,0.01127967,88655.0,88645.0,0.01132]
[1767115753837,0.01128018,88651.0,88638.0,0.29291]
[1767115754050,0.55810948,88650.0,88642.0,0.01132]
[1767115754248,0.01128044,88649.0,88642.0,0.01127852]
[1767115754431,0.55810948,88650.0,88642.0,0.01127852]
[1767115754779,0.54682917,88650.0,88642.0,0.01127852]
[1767115755183,0.01128006,88652.0,88642.0,0.01127852]
[1767115756277,0.01127993,88653.0,88642.0,0.01127852]
[1767115756456,0.2871198,88654.0,88642.0,0.01127852]
[1767115756657,0.01128006,88652.0,88642.0,0.01127852]
[1767115756853,0.01127993,88653.0,88642.0,0.01127852]
[1767115757136,0.55810923,88652.0,88637.0,0.01128197]
[1767115757353,0.01128018,88651.0,88639.0,0.29947]
[1767115757561,0.05640094,88651.0,88639.0,0.29947]
[1767115757800,0.54682917,88650.0,88639.0,0.01132]
[1767115757964,0.01128018,88651.0,88639.0,0.01132]
[1767115758660,0.01128044,88649.0,88639.0,0.01132]
[1767115758863,0.01128044,88649.0,88639.0,0.01127689]
[1767115759498,0.28083,88652.0,88639.0,0.01127689]
[1767115760121,0.01127993,88653.0,88640.0,0.28815]
[1767115760332,0.01127955,88656.0,88640.0,0.28815]
[1767115760504,0.01127955,88656.0,88640.0,0.29943158]
[1767115760666,0.01127942,88657.0,88643.0,0.28815]
[1767115761001,0.01127917,88659.0,88644.0,0.01128107]
[1767115761304,0.01127917,88659.0,88645.0,0.28815]
[1767115761479,0.01127929,88658.0,88646.0,0.01132]
[1767115762048,0.01127942,88657.0,88646.0,0.01132]
[1767115762252,0.01127967,88655.0,88646.0,0.01132]
[1767115762474,0.0112798,88654.0,88646.0,0.01127611]
[1767115762662,0.01127967,88655.0,88646.0,0.01127611]
[1767115763038,0.01127993,88653.0,88646.0,0.01127611]
[1767115763438,0.01128044,88649.0,88646.0,0.01123505]
[1767115763766,0.05640327,88648.0,88646.0,0.01123505]
[1767115763946,0.01128044,88649.0,88646.0,0.01123505]
[1767115763947,0.06768306,88649.0,88646.0,0.01123505]
[1767115764530,0.01128044,88649.0,88646.0,0.01123505]
[1767115765130,0.01128031,88650.0,88646.0,0.01123505]
[1767115765754,0.06768165,88651.0,88646.0,0.01123505]
[1767115766177,0.01128018,88651.0,88646.0,0.01123505]
[1767115767413,0.01128006,88652.0,88646.0,0.01123505]
[1767115767583,0.01128031,88650.0,88646.0,0.01123505]
[1767115767782,0.29211031,88650.0,88646.0,0.0111925]
[1767115768031,0.29211044,88649.0,88646.0,0.0111925]
[1767115768933,0.01128069,88647.0,88640.0,0.01132]
[1767115769171,0.29211044,88649.0,88640.0,0.01132]
[1767115769342,0.01128044,88649.0,88640.0,0.01132]
[1767115769723,0.01128044,88649.0,88640.0,0.0112777]
[1767115769906,0.54689607,88650.0,88640.0,0.0112777]
[1767115770336,0.55817638,88650.0,88640.0,0.0112777]
[1767115770549,0.54689607,88650.0,88640.0,0.0112777]
[1767115771579,0.01128057,88648.0,88640.0,0.0112777]
[1767115771777,0.01128069,88647.0,88640.0,0.0112777]
[1767115773208,0.55817638,88650.0,88640.0,0.0112777]
[1767115773974,0.01128057,88648.0,88640.0,0.0112777]
[1767115774355,0.01128069,88647.0,88640.0,0.0112777]
[1767115774754,0.01128057,88648.0,88640.0,0.0112777]
[1767115775490,0.55817638,88650.0,88640.0,0.0112777]
[1767115775699,0.01128044,88649.0,88640.0,0.0112777]
[1767115776574,0.01128057,88648.0,88640.0,0.0112777]
[1767115778079,0.28083,88645.0,88640.0,0.0112777]
[1767115778630,0.01128057,88648.0,88640.0,0.0112777]
[1767115778851,0.82772607,88650.0,88640.0,0.0112777]
[1767115779052,0.83900638,88650.0,88640.0,0.0112777]
[1767115779763,0.01128044,88649.0,88640.0,0.0112777]
[1767115779988,0.83900638,88650.0,88640.0,0.0112777]
[1767115779989,0.82772607,88650.0,88640.0,0.0112777]
[1767115780332,0.83900638,88650.0,88640.0,0.0112777]
[1767115780576,0.01128044,88649.0,88640.0,0.0112777]
[1767115781763,0.82772607,88650.0,88640.0,0.0112777]
[1767115782012,0.54689607,88650.0,88640.0,0.0112777]
[1767115782441,0.54689607,88650.0,88633.0,0.05641225]
[1767115782442,0.28083,88648.0,88623.0,0.0003092]
[1767115782582,0.54689607,88633.0,88624.0,0.29947]
[1767115782767,0.29211171,88639.0,88624.0,0.29947]
[1767115782980,0.01128209,88636.0,88624.0,0.29947]
[1767115783384,0.01128197,88637.0,88624.0,0.29947]
[1767115783582,0.55817765,88640.0,88624.0,0.29947]
[1767115783829,0.01128057,88648.0,88632.0,0.28815]
[1767115784145,0.01128095,88645.0,88634.0,0.28815]
[1767115784942,0.06768315,88649.0,88634.0,0.28815]
[1767115785145,0.01128082,88646.0,88634.0,0.28815]
[1767115786049,0.01128095,88645.0,88634.0,0.28815]
[1767115787099,0.01128107,88644.0,88634.0,0.28815]
[1767115787405,0.01128133,88642.0,88634.0,0.28815]
[1767115789241,0.55817714,88644.0,88634.0,0.28815]
[1767115789446,0.0112812,88643.0,88634.0,0.28815]
[1767115790569,0.01128133,88642.0,88634.0,0.28815]
[1767115791649,0.01128095,88645.0,88634.0,0.28815]
[1767115791846,0.01128082,88646.0,88634.0,0.28815]
[1767115792045,0.01128095,88645.0,88634.0,0.28815]
[1767115792969,0.01132,88648.0,88634.0,0.29010235]
[1767115793180,0.29711943,88656.0,88654.0,0.0563986]
[1767115793318,3.315e-05,88664.0,88656.0,0.27882]
[1767115793962,0.01127866,88663.0,88656.0,0.27882]
[1767115794167,3.315e-05,88664.0,88656.0,0.27882]
[1767115794345,0.00012544,88664.0,88656.0,0.27882]
[1767115794936,0.00012544,88664.0,88657.0,0.01127942]
[1767115795274,0.01132,88672.0,88658.0,0.29009929]
[1767115796478,0.02259751,88672.0,88658.0,0.29009929]